[Event "79th Georgian Women-ch 2022"]
[Site "Tbilisi"]
[Date "2022.06.06"]
[Round "1.1"]
[White "Javakhishvili, Lela"]
[Black "Esadze, Tamari"]
[Result "1-0"]
[ECO "E05"]
[WhiteElo "2480"]
[BlackElo "1982"]
[Annotator "TA"]
[PlyCount "55"]
[EventDate "2022.06.06"]
[EventType "tourn"]
[EventCountry "GEO"]
[SourceTitle "playchess.com"]
[Source "ChessBase"]
[SourceQuality "1"]
[TimeControl "40/5400+30:1800+30"]

{[%evp 13,55,10,36,31,52,53,38,48,72,84,75,56,53,48,84,72,88,76,99,110,102,106,103,96,118,118,145,133,244,219,433,427,429,426,426,407,406,395,609,600,637,607,949,739]} 1. d4 {[%emt 0:00:04]} d5 {[%emt 0:00:04][%cal Bd7d5,Bd5c4][%mdl 32]} 2. c4 {[%emt 0:00:08]} e6 {[%emt 0:00:05]} 3. Nf3 {[%emt 0:00:16]} Nf6 {[%emt 0:00:12]} 4. g3 {[%emt 0:00:19]} Be7 {[%emt 0:02:58]} 5. Bg2 {[%emt 0:00:11]} O-O {[%emt 0:00:06]} 6. O-O {[%emt 0:00:27]} dxc4 {[%emt 0:07:47]} 7. Qc2 {[%emt 0:00:08]} Bd7 {[%emt 0:02:56]} 8. Ne5 {[%emt 0:14:36] E05: Open Catalan: 5 Nf3 Be7.} Bc6 {[%emt 0:06:55]} 9. Nxc6 {[%emt 0:00:33]} Nxc6 {[%emt 0:00:05]} 10. e3 {[%emt 0:01:11] White is slightly better.} Qd7 {[%emt 0:28:01]} 11. Qxc4 {[%emt 0:02:01] [#]} Rad8 $146 {[%emt 0:03:04]} ({Predecessor:} 11... Nd5 12. Nc3 Rfd8 13. Bd2 Rac8 14. Rfd1 Ncb4 15. Ne4 c6 16. a3 Na6 17. b4 Nac7 {1-0 (30) Castaneda,G (2487)-Kerkvliet,M (2210) Haarlem 2016}) 12. Nd2 {[%emt 0:08:19]} Nd5 {[%emt 0:03:50]} 13. Nf3 {[%emt 0:07:55]} Nb6 {[%emt 0:10:20]} 14. Qe2 {[%emt 0:06:00]} Bf6 {[%emt 0:02:21]} 15. Rb1 {[%emt 0:03:04]} e5 {[%emt 0:10:28]} 16. dxe5 {[%emt 0:01:24]} Bxe5 {[%emt 0:00:38]} 17. Nxe5 {[%emt 0:03:07]} Nxe5 {[%emt 0:00:09]} 18. b3 {[%emt 0:01:54]} Nc6 {[%emt 0:05:31]} 19. Bb2 {[%emt 0:02:03]} Qe6 {[%emt 0:03:01]} 20. Rbc1 {[%emt 0:06:17]} Nd5 {[%emt 0:08:03]} (20... Rfe8 $16 {might work better.} 21. Rfd1 Rxd1+ 22. Qxd1 (22. Rxd1 Qg6 $16) 22... Rd8) 21. Qb5 $18 {[%emt 0:04:45]} Nxe3 $2 {[%emt 0:03:50] [#]} (21... Nb6 22. Bxc6 bxc6 23. Rxc6 Qe7) 22. fxe3 {[%emt 0:06:32]} ({Inferior is} 22. Bxc6 Nxf1 23. Bxb7 Nd2 $15) 22... Rd2 {[%emt 0:00:05]} 23. Bc3 {[%emt 0:03:24]} ({Weaker is} 23. Bxc6 Qxe3+ 24. Kh1 bxc6 $18) 23... Qxe3+ {[%emt 0:00:12]} 24. Kh1 {[%emt 0:00:02]} Rxa2 {[%emt 0:01:12]} 25. Qxb7 {[%emt 0:03:37] Chess con chili.} Rxg2 {[%emt 0:00:33]} (25... Nd8 $142 26. Qxc7 Qe2) 26. Kxg2 {[%emt 0:03:16] White is clearly winning.} Qe4+ {[%emt 0:00:04]} 27. Rf3 {[%emt 0:00:26]} g5 {[%emt 0:00:57]} 28. Qb5 {[%emt 0:00:22] Weighted Error Value: White=0.01 (flawless) /Black=0.51} 1-0

[Event "79th Georgian Women-ch 2022"]
[Site "Tbilisi"]
[Date "2022.06.06"]
[Round "1.2"]
[White "Purtseladze, Maka"]
[Black "Tsotsonava, Elene"]
[Result "1-0"]
[ECO "C28"]
[WhiteElo "2287"]
[BlackElo "1915"]
[Annotator "TA"]
[PlyCount "59"]
[EventDate "2022.06.06"]
[EventType "tourn"]
[EventCountry "GEO"]
[SourceTitle "playchess.com"]
[Source "ChessBase"]
[SourceQuality "1"]
[TimeControl "40/5400+30:1800+30"]

{[%evp 12,59,6,14,8,9,12,6,37,29,72,70,76,81,83,60,73,85,141,143,132,137,154,108,135,118,100,86,100,99,114,112,111,111,150,139,122,140,131,135,173,87,85,76,488,487,467,464,637,467]} 1. e4 {[%emt 0:00:03]} e5 {[%emt 0:00:23]} 2. Nc3 {[%emt 0:01:38]} Nc6 {[%emt 0:00:31]} 3. Bc4 {[%emt 0:00:18]} Nf6 {[%emt 0:00:58]} 4. d3 {[%emt 0:04:25]} Bb4 {[%emt 0:04:55]} 5. Nge2 {[%emt 0:12:34]} Na5 {[%emt 0:09:24]} 6. O-O {[%emt 0:12:22]} Nxc4 {[%emt 0:05:17]} 7. dxc4 {[%emt 0:00:59]} O-O {[%emt 0:01:37] C28: Vienna Game: 2...Nf6 3 Bc4 Nc6.} 8. Qd3 {[%emt 0:06:44]} d6 {[%emt 0:07:41]} 9. Bg5 {[%emt 0:09:29]} c6 {[%emt 0:05:54] Prevents Nd5. The position is equal.} (9... Bxc3 $5 10. Nxc3 h6 $11) 10. Rad1 {[%emt 0:09:59] [#]} Bg4 $146 {[%emt 0:08:27]} ({Predecessor:} 10... h6 11. Bc1 Bg4 12. h3 Bh5 13. f3 Qb6+ 14. Kh2 Rad8 15. a3 Bxc3 16. Nxc3 Bg6 {0-1 (43) Van de Peut,A-Payne,R IECG email 2001}) 11. h3 $1 {[%emt 0:15:35]} Bh5 {[%emt 0:04:17]} 12. g4 {[%emt 0:03:35]} Bg6 {[%emt 0:02:01]} 13. a3 {[%emt 0:03:53]} Bxc3 {[%emt 0:05:42]} 14. Nxc3 {[%emt 0:00:04]} h5 {[%emt 0:08:59]} ({Black should play} 14... Re8) 15. Qf3 $1 $16 {[%emt 0:03:03]} ({Reject} 15. Qxd6 $6 Qxd6 16. Rxd6 Nxe4 17. Nxe4 Bxe4 $11) (15. Bxf6 $6 Qxf6 16. f3 (16. Qxd6 Qf4 $11) 16... Qh4 $11) 15... hxg4 {[%emt 0:03:03]} 16. hxg4 {[%emt 0:00:09]} Qe7 {[%emt 0:00:55]} 17. Kg2 {[%emt 0:00:25]} ({Better is} 17. Rd3) 17... Qe6 {[%emt 0:01:39][%csl LRc4,LRg4]} 18. Bxf6 {[%emt 0:00:06]} gxf6 {[%emt 0:00:54]} 19. Rh1 {[%emt 0:02:54] Qh3 is the strong threat.} Kg7 {[%emt 0:00:22]} 20. Kg3 $40 {[%emt 0:05:16][%mdl 128] White attacks with force.} Rg8 {[%emt 0:01:50]} 21. Qe3 {[%emt 0:05:36][%csl Gh1][%cal Re3h6]} Kf8 {[%emt 0:01:21]} 22. f3 {[%emt 0:00:04]} Rd8 {[%emt 0:08:29] [#]} 23. b3 $1 {[%emt 0:01:08]} f5 {[%emt 0:03:12]} 24. gxf5 {[%emt 0:00:07]} Bxf5+ {[%emt 0:01:51]} 25. Kf2 {[%emt 0:00:03] Active counter play!} Bh3 {[%emt 0:02:16] [#]} 26. Rdg1 {[%emt 0:01:01]} (26. Rh2 $1 $18) 26... Rxg1 {[%emt 0:03:30]} 27. Rxg1 {[%emt 0:00:04] Strongly threatening Qg5.} b6 $2 {[%emt 0:00:10][%mdl 8192]} (27... Ke7 $16 {is a better chance.}) 28. Rg3 {[%emt 0:01:17] White is clearly winning.} Ke8 {[%emt 0:04:17]} 29. Qg5 {[%emt 0:00:24]} b5 {[%emt 0:00:37]} 30. Qh4 {[%emt 0:00:14] Weighted Error Value: White=0.07 (flawless) /Black=0.58} 1-0

[Event "79th Georgian Women-ch 2022"]
[Site "Tbilisi"]
[Date "2022.06.06"]
[Round "1.3"]
[White "Lomaia, Diana"]
[Black "Gvetadze, Sofio"]
[Result "1-0"]
[ECO "D70"]
[WhiteElo "1846"]
[BlackElo "2306"]
[Annotator "TA"]
[PlyCount "129"]
[EventDate "2022.06.06"]
[EventType "tourn"]
[EventCountry "GEO"]
[SourceTitle "playchess.com"]
[Source "ChessBase"]
[SourceQuality "1"]
[TimeControl "40/5400+30:1800+30"]

{[%evp 22,129,29,36,28,41,36,35,42,31,50,41,101,4,164,180,203,191,201,139,175,168,296,230,240,223,268,244,415,291,452,284,283,275,262,214,329,312,326,325,279,143,242,250,481,448,472,468,452,401,424,402,415,398,395,395,539,21,474,457,644,627,751,627,924,916,762,461,775,772,695,681,688,685,682,654,660,632,625,489,597,566,555,514,595,624,608,495,901,908,12840,12841,12844,12841,12841,12842,12843,12843,12843,12843,12844,12844,12845,12844,12845,12844,12845,12845,12845,12843]} 1. d4 {[%emt 0:00:03]} Nf6 {[%emt 0:00:09]} 2. c4 {[%emt 0:00:07]} g6 {[%emt 0:00:17]} 3. f3 {[%emt 0:00:40]} d5 {[%emt 0:01:02]} 4. cxd5 {[%emt 0:00:42]} Nxd5 {[%emt 0:00:06]} 5. e4 {[%emt 0:00:06]} Nb6 {[%emt 0:00:12]} 6. Nc3 {[%emt 0:01:39]} Bg7 {[%emt 0:00:15]} 7. Be3 {[%emt 0:00:23]} O-O {[%emt 0:00:27]} 8. Qd2 {[%emt 0:01:45]} e5 {[%emt 0:01:22]} 9. O-O-O {[%emt 0:02:34]} Nc6 {[%emt 0:03:43]} 10. d5 {[%emt 0:10:30]} Nd4 {[%emt 0:03:14]} 11. f4 {[%emt 0:03:26]} Bg4 {[%emt 0:02:26]} 12. Re1 $1 {[%emt 0:02:25]} c5 {[%emt 0:05:37] D70: Grünfeld: Unusual White 3rd moves (met by ...d5).} 13. h3 {[%emt 0:03:33]} Bd7 {[%emt 0:04:35]} 14. fxe5 {[%emt 0:10:21]} Bxe5 {[%emt 0:00:59] White is slightly better.} 15. Nf3 {[%emt 0:05:01]} Nxf3 {[%emt 0:07:04]} 16. gxf3 {[%emt 0:00:26]} Rc8 {[%emt 0:00:21]} (16... f5 $14) 17. f4 {[%emt 0:11:36]} ({White should try} 17. Bg5 $16 f6 18. Bf4) 17... Bg7 $2 {[%emt 0:06:32] Black is on the road to losing.} (17... Bxc3 $11 {and Black is okay.} 18. Qxc3 f5) 18. e5 $18 {[%emt 0:07:05]} Na4 {[%emt 0:06:49] [#]} 19. Nxa4 {[%emt 0:04:41]} Bxa4 {[%emt 0:00:09] [#]} 20. Kb1 $146 {[%emt 0:00:21]} ({Predecessor:} 20. Bg2 a5 21. Kb1 Bd7 22. Be4 c4 23. Bd4 b5 24. f5 b4 25. f6 Bh8 26. Rhg1 c3 27. Qh6 Be8 28. Rg4 {1-0 (28) Nikcevic,N (2409)-Vulevic,V (2292) Cetinje 2010}) 20... c4 {[%emt 0:18:36]} 21. Rc1 {[%emt 0:03:52]} (21. Bxa7 $6 c3 22. bxc3 Qa5 $16) 21... b5 {[%emt 0:01:21]} (21... Bb5 $142 22. Bg2 (22. Bxa7 c3 $16) 22... b6) 22. Be2 {[%emt 0:04:00][%cal Bf1e2,Be2g4,Bg4f3][%mdl 32]} (22. Bxa7 Qd7 23. Bb6 Qf5+ 24. Ka1 Bb3 $11) 22... a5 {[%emt 0:11:51]} 23. d6 {[%emt 0:05:58]} Rb8 {[%emt 0:07:31]} 24. Qd5 {[%emt 0:03:36] Threatens to win with b3.} Qh4 $2 {[%emt 0:01:03]} (24... b4 {keeps fighting.} 25. Bxc4 Bd7) 25. Bg4 {[%emt 0:03:21]} h5 {[%emt 0:06:29]} (25... b4 {was called for.} 26. Rxc4 h5) 26. Bf3 {[%emt 0:01:05]} b4 {[%emt 0:03:55]} 27. Rxc4 {[%emt 0:02:07]} Bd7 {[%emt 0:00:01]} 28. Rc7 {[%emt 0:02:01]} ({Weaker is} 28. Qxa5 Qg3 29. Rf1 (29. Qd5 $2 Be6 $19) 29... Bxh3 $17) 28... Be6 {[%emt 0:00:23]} (28... Bf5+ $142 29. Ka1 Qg3) 29. Qd2 {[%emt 0:00:48]} ({Not} 29. Qxa5 Qg3 30. Rf1 Bxh3 $11) 29... a4 {[%emt 0:04:00]} 30. Bf2 {[%emt 0:06:33]} Qd8 {[%emt 0:00:36]} 31. Ba7 {[%emt 0:01:25]} (31. h4 $18) 31... Bf5+ {[%emt 0:01:06]} (31... Rc8 $16 32. Bb6 (32. Qxb4 $2 Rxc7 33. dxc7 Qd3+ 34. Ka1 Qxf3 $19) 32... Rxc7 33. Bxc7 Qh4) 32. Ka1 {[%emt 0:00:11]} Rb5 {[%emt 0:02:40]} (32... Rc8 {was necessary.}) 33. Bc6 {[%emt 0:01:42]} Rxe5 {[%emt 0:00:46]} 34. fxe5 {[%emt 0:00:59]} Bxe5 {[%emt 0:00:01] And now ...a3 would win.} 35. Rd1 {[%emt 0:02:22]} a3 {[%emt 0:01:17]} 36. Bd4 {[%emt 0:00:06]} Qxd6 {[%emt 0:00:42] aiming for ...Bxd4.} 37. Bxe5 {[%emt 0:00:44]} Qxe5 {[%emt 0:00:01]} 38. Rb7 {[%emt 0:00:40][%cal Bc7b7,Bb7b4,Bb4b2,Bb2c2,Bc2c4,Bc4f4][%mdl 32]} Rc8 {[%emt 0:00:36] [#]} 39. Rc1 {[%emt 0:00:34]} (39. Bd5 $1 $18 {[%cal Rd5f7]}) 39... Kg7 {[%emt 0:01:12][%mdl 8192]} (39... Qf6 $11) 40. Rxb4 {[%emt 0:00:00] White is clearly winning.} Qf6 {[%emt 0:00:00]} (40... Kh7 $142 41. Qc3 axb2+ 42. Qxb2 Qd6) 41. Qc3 {[%emt 0:03:09]} axb2+ {[%emt 0:00:57]} 42. Rxb2 {[%emt 0:00:32]} Bxh3 {[%emt 0:00:50]} 43. Qxf6+ {[%emt 0:01:24]} Kxf6 {[%emt 0:00:02]} 44. Rbc2 {[%emt 0:00:11]} Rd8 {[%emt 0:00:12]} (44... Bf5 $142 45. Rh2 Kg7) 45. a4 {[%emt 0:02:24]} Bf5 {[%emt 0:00:15]} 46. Rc4 {[%emt 0:00:44]} Be6 {[%emt 0:00:06]} 47. Rf4+ {[%emt 0:01:09]} Kg5 {[%emt 0:00:09]} 48. Rb4 {[%emt 0:00:30]} Rd2 {[%emt 0:00:14]} 49. Rb2 {[%emt 0:00:25]} Rd3 {[%emt 0:00:05]} 50. Rg2+ {[%emt 0:00:52]} Kf4 {[%emt 0:00:19]} 51. Rf1+ {[%emt 0:00:34]} Ke5 {[%emt 0:00:01]} 52. Rf3 {[%emt 0:01:33]} Rd1+ {[%emt 0:00:21]} 53. Kb2 {[%emt 0:00:02]} Kd6 {[%emt 0:00:15]} 54. Be4 {[%emt 0:00:48]} Kc5 {[%emt 0:00:20]} (54... Re1 $142 55. Rd3+ Ke5) 55. Rd3 {[%emt 0:00:54]} Re1 {[%emt 0:00:17]} 56. Rc2+ {[%emt 0:00:11]} Kb6 {[%emt 0:00:11]} 57. Bd5 {[%emt 0:04:02]} Bxd5 {[%emt 0:02:37]} 58. Rxd5 {[%emt 0:00:03]} h4 {[%emt 0:00:04]} 59. Rb5+ {[%emt 0:00:13]} Ka7 {[%emt 0:00:25]} 60. Rc7+ {[%emt 0:00:11]} Ka6 {[%emt 0:00:03]} 61. Rxf7 {[%emt 0:00:27]} h3 {[%emt 0:00:06]} 62. Rf8 {[%emt 0:01:07][%cal Rf8a8]} Ka7 {[%emt 0:00:05] Prevents Ra8+.} 63. Rh8 {[%emt 0:00:21]} Re2+ {[%emt 0:00:11]} 64. Ka3 {[%emt 0:00:22]} h2 {[%emt 0:00:11]} 65. Rb2 {[%emt 0:00:33] Weighted Error Value: White=0.63/Black=0.79} 1-0

[Event "79th Georgian Women-ch 2022"]
[Site "Tbilisi"]
[Date "2022.06.06"]
[Round "1.4"]
[White "Melia, Salome"]
[Black "Batsiashvili, Nino"]
[Result "1-0"]
[ECO "B30"]
[WhiteElo "2368"]
[BlackElo "2463"]
[Annotator "TA"]
[PlyCount "53"]
[EventDate "2022.06.06"]
[EventType "tourn"]
[EventCountry "GEO"]
[SourceTitle "playchess.com"]
[Source "ChessBase"]
[SourceQuality "1"]
[TimeControl "40/5400+30:1800+30"]

{[%evp 10,53,23,33,39,43,34,32,48,41,71,33,145,145,146,128,137,103,108,70,119,97,105,107,111,39,35,48,54,41,59,31,25,3,49,55,57,66,74,71,79,68,111,115,105,114]} 1. e4 {[%emt 0:00:02]} c5 {[%emt 0:00:08]} 2. Nf3 {[%emt 0:00:41]} Nc6 {[%emt 0:00:05]} 3. Bb5 {[%emt 0:03:02]} e6 {[%emt 0:00:36]} 4. O-O {[%emt 0:01:35]} Nge7 {[%emt 0:00:16]} 5. d4 {[%emt 0:02:21]} cxd4 {[%emt 0:04:43]} 6. Nxd4 {[%emt 0:00:24]} Nxd4 {[%emt 0:06:32] 6...Ng6 is setting a new trend. B30: Sicilian: 2...Nc6 3 Bb5, lines without ...g6.} 7. Qxd4 {[%emt 0:00:04]} a6 {[%emt 0:00:13]} 8. Be2 {[%emt 0:01:51]} Nc6 {[%emt 0:00:44] White is slightly better.} 9. Qc3 {[%emt 0:01:17]} h5 {[%emt 0:08:57] [#]} 10. a4 $146 {[%emt 0:05:27]} ({Predecessor:} 10. Bf4 b5 11. Nd2 Bb7 12. a4 b4 13. Qg3 h4 14. Qg4 {½-½ (14) Predojevic,B (2607)-Damljanovic,B (2566) Skopje 2014}) 10... Be7 {[%emt 0:14:46]} (10... d5 $14) 11. Qxg7 $16 {[%emt 0:10:26]} Bf6 {[%emt 0:00:05]} 12. Qg3 {[%emt 0:00:06] White is more active.} h4 {[%emt 0:00:09]} 13. Qh3 {[%emt 0:00:53]} d5 {[%emt 0:14:11]} 14. exd5 {[%emt 0:02:50]} Nd4 {[%emt 0:15:46]} (14... exd5 $14 15. Bg4 Ne5 16. Bxc8 (16. Re1 Qe7 $17) 16... Qxc8) 15. Bd1 {[%emt 0:13:04]} e5 {[%emt 0:02:42] [#]} 16. Qe3 {[%emt 0:09:40]} h3 {[%emt 0:01:06] [#]} 17. g3 {[%emt 0:02:08]} ({Wrong is} 17. Qe4 $2 Bf5 18. Qe3 Qxd5 $19) ({Better is} 17. Nc3 $1 $16) 17... Qxd5 $14 {[%emt 0:00:57][%csl Gh3][%cal Rd5g2]} 18. f3 {[%emt 0:00:04]} Be6 {[%emt 0:09:45]} 19. Nc3 {[%emt 0:05:05]} Qc6 {[%emt 0:00:04]} 20. Ne4 {[%emt 0:18:51]} Be7 {[%emt 0:00:02]} 21. b4 {[%emt 0:02:32]} Bc4 {[%emt 0:05:54]} ({Don't take} 21... Bxb4 22. Qg5 $14) (21... Nxc2 $11 {feels stronger.} 22. Bxc2 Qxc2) 22. Rf2 {[%emt 0:07:00]} O-O-O {[%emt 0:03:42][%cal Od4b3] Hoping for ...Nb3!} (22... Bxb4 $2 23. c3 $18) 23. Ba3 {[%emt 0:04:06][%cal Ob4b5] Threatens to win with b5!} Rhe8 {[%emt 0:04:36]} 24. b5 {[%emt 0:01:14]} axb5 {[%emt 0:00:32] ...b4 is the strong threat.} 25. axb5 {[%emt 0:01:17]} Bxb5 {[%emt 0:04:06]} 26. Bxe7 {[%emt 0:00:19]} Rxe7 {[%emt 0:00:03]} 27. Qg5 {[%emt 0:06:09] Black escapes into a draw.  Weighted Error Value: White=0.15 (very precise) /Black=0.22 (precise)} 1-0

[Event "79th Georgian Women-ch 2022"]
[Site "Tbilisi"]
[Date "2022.06.06"]
[Round "1.5"]
[White "Vakhania, Alexandra"]
[Black "Arabidze, Meri"]
[Result "1-0"]
[ECO "A46"]
[WhiteElo "2135"]
[BlackElo "2436"]
[Annotator "TA"]
[PlyCount "157"]
[EventDate "2022.06.06"]
[EventType "tourn"]
[EventCountry "GEO"]
[SourceTitle "playchess.com"]
[Source "ChessBase"]
[SourceQuality "1"]
[TimeControl "40/5400+30:1800+30"]

{[%evp 9,157,13,12,-25,11,-5,-9,-6,0,0,0,0,0,-25,-19,-25,27,29,35,33,69,-12,16,18,14,14,27,24,39,33,43,39,54,24,24,0,0,0,0,-19,0,-4,0,0,-2,-22,-13,-15,-25,-16,-17,-20,-18,-12,0,0,0,0,0,0,0,0,0,0,8,10,8,6,44,44,44,44,90,98,63,47,50,56,64,35,36,0,73,63,85,87,96,87,126,126,181,170,165,128,150,128,416,418,379,163,179,150,151,138,327,136,189,132,182,140,141,12,420,347,310,79,79,79,79,79,79,0,86,86,86,60,86,1,8,-66,5,0,133,139,245,237,3153,5231,2007,111,1455,2086,2147,2045,29978,29977,29977,29970,29990,29991]} 1. d4 {[%emt 0:00:03]} Nf6 {[%emt 0:00:10][%cal Bg8f6,Bf6e4,Be4c3][%mdl 32]} 2. Nf3 {[%emt 0:00:13][%cal Bg1f3,Bf3d2,Bd2c4][%mdl 32]} d6 {[%emt 0:00:13]} 3. Nc3 {[%emt 0:00:14]} Bf5 {[%emt 0:00:32]} 4. h3 {[%emt 0:02:20]} h6 {[%emt 0:02:16]} 5. g4 {[%emt 0:00:30]} Bh7 {[%emt 0:01:30]} 6. Bg2 {[%emt 0:06:49] [#] A46: 1 d4 Nf6 2 Nf3 e6: Torre, London and Colle Systems.} Ne4 $146 {[%emt 0:05:57]} ({Predecessor:} 6... Nbd7 7. g5 Ne4 8. h4 Nxc3 9. bxc3 e5 10. Rb1 Be4 11. Kf1 Qe7 12. a4 O-O-O {0-1 (29) Pribyl,J (2455)-Tal,M (2620) Sochi 1984}) 7. Nd2 {[%emt 0:02:22]} Nxc3 {[%emt 0:02:51]} 8. bxc3 {[%emt 0:00:06] The position is equal.} c6 {[%emt 0:00:35]} 9. e4 {[%emt 0:01:25]} e5 {[%emt 0:13:34]} 10. O-O {[%emt 0:01:46][%cal Bh1f1,Bf1d1,Bd1d6][%mdl 32]} Be7 {[%emt 0:01:29]} 11. dxe5 {[%emt 0:07:59]} dxe5 {[%emt 0:00:30]} 12. Nc4 {[%emt 0:00:04]} Qxd1 {[%emt 0:18:07]} (12... f6 $142) 13. Rxd1 $11 {[%emt 0:02:11]} Nd7 {[%emt 0:00:04]} 14. Be3 {[%emt 0:08:25]} f6 {[%emt 0:06:19]} 15. Rab1 {[%emt 0:02:14] White is much more active. The black rooks are badly placed.} ({White should try} 15. a4 $14) 15... b6 {[%emt 0:03:36]} (15... O-O-O $5 {[%cal Rd7c5]}) 16. Nd6+ {[%emt 0:00:53]} Bxd6 {[%emt 0:01:23]} 17. Rxd6 {[%emt 0:00:03]} Rc8 {[%emt 0:10:23][%cal Ba8c8,Bc8c7,Bc7a7,Ba7a3][%mdl 32]} (17... Ke7 $5 {[%cal Re7d6]} 18. Rbd1 (18. Rxc6 Rac8 $11) 18... Rhd8 $11) 18. a4 {[%emt 0:03:50][%cal Oa4a5]} Ke7 {[%emt 0:01:33]} (18... Kd8 {feels hotter.} 19. a5 Kc7 20. Re6 Rhe8) 19. Rdd1 {[%emt 0:06:03]} Rc7 {[%emt 0:01:15]} 20. a5 {[%emt 0:00:19]} Rb8 {[%emt 0:01:24]} 21. axb6 {[%emt 0:01:43]} axb6 {[%emt 0:00:14]} 22. f3 {[%emt 0:00:06]} Ra7 {[%emt 0:03:11]} 23. Bf1 {[%emt 0:05:34]} Bg8 {[%emt 0:00:22]} 24. Rb2 {[%emt 0:05:05]} Ra3 {[%emt 0:07:04]} 25. Kf2 {[%emt 0:00:32]} Be6 {[%emt 0:05:32]} (25... Rxc3 26. Bd2 Rc4 27. Bxc4 Bxc4 28. Rbb1 $16) 26. h4 {[%emt 0:01:42]} Rba8 {[%emt 0:07:27]} (26... Rxc3 27. Bd2 Rc4 28. Bxc4 Bxc4 29. Ra1 $16) 27. Be2 {[%emt 0:10:33]} Ra2 {[%emt 0:00:59]} (27... Rxc3 28. Bd2 Rc4 29. Bxc4 Bxc4 30. Rbb1 $16) 28. Rdb1 {[%emt 0:00:37]} Rxb2 {[%emt 0:00:37]} 29. Rxb2 {[%emt 0:00:03]} b5 {[%emt 0:00:52]} 30. Rb1 {[%emt 0:00:30]} Ra2 {[%emt 0:01:16]} 31. Bd3 {[%emt 0:01:41]} Bc4 {[%emt 0:01:26]} 32. Bxc4 {[%emt 0:00:51]} bxc4 {[%emt 0:00:01][%mdl 4096] Endgame KRB-KRN} 33. Rc1 {[%emt 0:03:04]} Nb8 {[%emt 0:02:55]} 34. Ke2 {[%emt 0:03:36]} Na6 {[%emt 0:00:05]} 35. Kd2 {[%emt 0:00:09]} Nc7 {[%emt 0:00:12]} 36. Bc5+ {[%emt 0:06:37]} Ke6 {[%emt 0:00:05]} 37. Rb1 {[%emt 0:01:21]} Nb5 {[%emt 0:00:08]} 38. Rb4 {[%emt 0:04:52]} Ra1 {[%emt 0:02:13]} 39. Rxc4 {[%emt 0:00:10]} Rf1 {[%emt 0:00:51]} 40. Ke2 {[%emt 0:00:00]} Rh1 {[%emt 0:00:00]} (40... Rc1 $14) 41. h5 $16 {[%emt 0:00:53]} Ra1 {[%emt 0:09:40]} 42. Bf8 {[%emt 0:04:23]} Kf7 {[%emt 0:00:06]} 43. Bb4 {[%emt 0:00:19]} Ra6 {[%emt 0:00:29]} 44. Rc5 {[%emt 0:00:21]} Ke6 {[%emt 0:02:57]} 45. Rc4 {[%emt 0:00:24]} Kf7 {[%emt 0:00:31]} 46. Bc5 {[%emt 0:00:07]} Ke6 {[%emt 0:00:25]} 47. Kd3 {[%emt 0:01:53]} Ra8 {[%emt 0:01:04]} 48. Rb4 {[%emt 0:00:33]} Rd8+ {[%emt 0:06:57]} 49. Ke3 $1 {[%emt 0:00:18]} Ra8 {[%emt 0:01:13] Against Ra4} (49... Rd7 $16 {was worth a try.}) 50. c4 $18 {[%emt 0:01:51]} Nd6 {[%emt 0:01:48]} 51. Kd3 {[%emt 0:05:54]} Rc8 {[%emt 0:07:14]} 52. Kc3 {[%emt 0:04:57] Threatens to win with Rb6.} Rc7 $2 {[%emt 0:00:30][%mdl 8192]} (52... Ra8 $16 {was necessary.}) 53. Rb8 {[%emt 0:02:00]} Rd7 {[%emt 0:03:43]} 54. Rb6 {[%emt 0:03:15]} (54. Rf8 $142 {Strongly threatening Rb8.} Nb7 55. Rc8 $1) 54... Rc7 {[%emt 0:00:09]} 55. Ra6 {[%emt 0:00:20]} Nf7 {[%emt 0:00:19]} 56. Bb6 {[%emt 0:00:47]} Rd7 {[%emt 0:01:20]} (56... Rb7 $16 57. Be3 Kd7) 57. Be3 {[%emt 0:05:35]} (57. Ba5 $1 $18 {and the rest is easy.}) 57... Kd6 {[%emt 0:00:02]} (57... Nd8 $16 58. Bc5 Rb7) 58. Ra1 {[%emt 0:00:57]} (58. c5+ $18 Kc7 59. Ra7+ Kc8 60. Ra8+ Kb7 61. Re8) 58... Kc7 {[%emt 0:01:04]} (58... Nd8 $16 59. c5+ Ke7) 59. Kb4 {[%emt 0:03:53]} Nd8 {[%emt 0:00:20]} 60. Ra3 {[%emt 0:04:08]} (60. f4 $16) 60... Ne6 $2 {[%emt 0:00:38][%mdl 8192]} (60... Rd1 $1 $11) 61. Ra7+ $1 {[%emt 0:00:29]} Kc8 {[%emt 0:00:23][%cal Oc6c5]} 62. Ra8+ $2 {[%emt 0:00:18]} (62. Rxd7 $1 $18 {aiming for Re7.} Kxd7 63. Ka5) 62... Kb7 $16 {[%emt 0:00:14]} 63. Re8 {[%emt 0:01:45]} Nc7 {[%emt 0:00:20]} 64. Rg8 {[%emt 0:00:30]} Ne6 {[%emt 0:00:08]} 65. Ka5 {[%emt 0:01:50]} ({White should play} 65. c5 $16) 65... Re7 {[%emt 0:00:53]} (65... Rd1 $11 {keeps the balance.}) 66. Ka4 {[%emt 0:02:22]} Rd7 {[%emt 0:00:14]} 67. Kb4 {[%emt 0:00:04]} Re7 {[%emt 0:00:43]} 68. Bc5 {[%emt 0:03:13]} (68. c5 $16) 68... Rd7 $11 {[%emt 0:00:27]} 69. Bf8 {[%emt 0:01:46]} (69. Rh8 $11) 69... Kc7 {[%emt 0:01:15]} (69... Ka6 $1 $15 70. Rh8 c5+ 71. Kc3 Kb7) 70. c5 {[%emt 0:00:21]} Kb7 {[%emt 0:00:28]} ({Don't take} 70... Rd4+ 71. Kb3 Rd8 72. Bd6+ Kd7 73. Rxd8+ Kxd8 74. Kc3 $11) (70... Rd8 $11 {remains equal.} 71. Bd6+ Kd7 72. Rxd8+ Kxd8) 71. Bd6 $16 {[%emt 0:00:57]} Ng5 {[%emt 0:00:18] [#]} (71... Ka7 $16 72. c3 Nf4) 72. Ka5 $1 $18 {[%emt 0:00:31]} (72. Rb8+ Ka7 73. Rg8 (73. Rc8 Kb7 $16) 73... Kb7 $16) 72... Ka7 $2 {[%emt 0:00:51]} ({Not} 72... Nxf3 73. Bf8 Nh2 74. Bxg7 (74. Rxg7 Rxg7 75. Bxg7 Nxg4 $11) 74... Nxg4 75. Bf8 $16) (72... Ne6 73. Re8 Nc7) 73. Rc8 {[%emt 0:00:15]} Kb7 {[%emt 0:00:30]} 74. Rb8+ {[%emt 0:00:07]} Ka7 {[%emt 0:00:01][%cal Od7d6] [#] Hoping for ...Rxd6!} 75. Rb6 $1 {[%emt 0:00:13]} Nxf3 {[%emt 0:00:50]} 76. Rxc6 {[%emt 0:00:26] White wants to mate with Ra6+.} Nd4 {[%emt 0:00:11]} 77. Ra6+ {[%emt 0:00:31] White mates.} Kb7 {[%emt 0:00:01]} 78. Rb6+ {[%emt 0:00:10]} Ka7 {[%emt 0:00:32]} 79. c3 {[%emt 0:00:29] Weighted Error Value: White=0.22 (precise) /Black=0.29 (precise)} 1-0